[Event "Titled Tuesday Blitz March 15 Late 2022"]
[White "Kovanova, Baira"]
[Black "Pichot, Alan"]
[WhiteFideId "4164083"]
[BlackFideId "110973"]
[WhiteElo "2190"]
[BlackElo "2579"]
[Result "0-1"]
[Round "01"]
[TimeControl "180+1"]
[Date "2022.03.16"]
[WhiteClock "0:00:09"]
[BlackClock "0:00:23"]

1. e4 {[%clk 0:02:57]}  c5 {[%clk 0:02:59]} 2. Nf3 {[%clk 0:02:57]}  d6 {[%clk 0:02:58]} 3. d4 {[%clk 0:02:57]}  cxd4 {[%clk 0:02:57]} 4. Nxd4 {[%clk 0:02:57]}  Nf6 {[%clk 0:02:57]} 5. Nc3 {[%clk 0:02:57]}  Nc6 {[%clk 0:02:55]} 6. Bg5 {[%clk 0:02:57]}  e6 {[%clk 0:02:53]} 7. Qd2 {[%clk 0:02:56]}  a6 {[%clk 0:02:49]} 8. O-O-O {[%clk 0:02:56]}  Be7 {[%clk 0:02:49]} 9. f4 {[%clk 0:02:56]}  Bd7 {[%clk 0:02:47]} 10. Nb3 {[%clk 0:02:53]}  b5 {[%clk 0:02:46]} 11. Bxf6 {[%clk 0:02:48]}  gxf6 {[%clk 0:02:44]} 12. Be2 {[%clk 0:02:42]}  h5 {[%clk 0:02:40]} 13. Rhf1 {[%clk 0:02:40]}  Qb6 {[%clk 0:02:39]} 14. f5 {[%clk 0:02:38]}  O-O-O {[%clk 0:02:31]} 15. Kb1 {[%clk 0:02:28]}  Kb8 {[%clk 0:02:31]} 16. a3 {[%clk 0:02:28]}  Rc8 {[%clk 0:02:29]} 17. Na2 {[%clk 0:02:17]}  Rc7 {[%clk 0:02:15]} 18. Nb4 {[%clk 0:02:14]}  Ne5 {[%clk 0:02:01]} 19. fxe6 {[%clk 0:01:53]}  fxe6 {[%clk 0:02:00]} 20. Qd4 {[%clk 0:01:53]}  Kb7 {[%clk 0:01:51]} 21. c3 {[%clk 0:01:37]}  h4 {[%clk 0:01:49]} 22. a4 {[%clk 0:01:20]}  a5 {[%clk 0:01:34]} 23. Nd3 {[%clk 0:00:49]}  bxa4 {[%clk 0:01:26]} 24. Nxe5 {[%clk 0:00:45]}  dxe5 {[%clk 0:01:18]} 25. Qxb6+ {[%clk 0:00:37]}  Kxb6 {[%clk 0:01:17]} 26. Nd2 {[%clk 0:00:37]}  Bc6 {[%clk 0:01:00]} 27. Nc4+ {[%clk 0:00:36]}  Kc5 {[%clk 0:01:00]} 28. Bd3 {[%clk 0:00:31]}  Ra7 {[%clk 0:00:54]} 29. Kc2 {[%clk 0:00:30]}  Rg8 {[%clk 0:00:54]} 30. Rf2 {[%clk 0:00:28]}  Rg4 {[%clk 0:00:52]} 31. Ne3 {[%clk 0:00:19]}  Rxe4 {[%clk 0:00:46]} 32. Bxe4 {[%clk 0:00:19]}  Bxe4+ {[%clk 0:00:46]} 33. Kc1 {[%clk 0:00:19]}  f5 {[%clk 0:00:47]} 34. Re1 {[%clk 0:00:17]}  Bg5 {[%clk 0:00:47]} 35. Kd1 {[%clk 0:00:16]}  Rd7+ {[%clk 0:00:42]} 36. Rd2 {[%clk 0:00:13]}  Rxd2+ {[%clk 0:00:29]} 37. Kxd2 {[%clk 0:00:13]}  f4 {[%clk 0:00:30]} 38. Ng4 {[%clk 0:00:10]}  f3+ {[%clk 0:00:30]} 39. Kd1 {[%clk 0:00:10]}  fxg2 {[%clk 0:00:31]} 40. Nxe5 {[%clk 0:00:10]}  Be3 {[%clk 0:00:26]} 41. Ng4 {[%clk 0:00:10]}  Bf3+ {[%clk 0:00:23]} 42. Kc2 {[%clk 0:00:09]}  Bxg4 {[%clk 0:00:23]} 0-1


[Site "https://www.chess.com"]

[Event "Titled Tuesday Blitz March 15 Late 2022"]
[White "Kozlov, Gennady"]
[Black "Ardila, Oscar Humberto"]
[WhiteFideId "4191668"]
[BlackFideId "4404742"]
[WhiteElo "2392"]
[BlackElo "1966"]
[Result "1-0"]
[Round "01"]
[TimeControl "180+1"]
[Date "2022.03.16"]
[WhiteClock "0:02:01"]
[BlackClock "0:00:10"]

1. b3 {[%clk 0:03:00]}  Nf6 {[%clk 0:02:59]} 2. Bb2 {[%clk 0:03:01]}  e6 {[%clk 0:03:00]} 3. e3 {[%clk 0:03:01]}  Be7 {[%clk 0:03:00]} 4. f4 {[%clk 0:03:02]}  c5 {[%clk 0:03:00]} 5. Nf3 {[%clk 0:03:03]}  Nc6 {[%clk 0:03:00]} 6. Be2 {[%clk 0:03:03]}  O-O {[%clk 0:02:59]} 7. O-O {[%clk 0:03:04]}  d6 {[%clk 0:02:59]} 8. Qe1 {[%clk 0:03:05]}  Qc7 {[%clk 0:02:56]} 9. Qg3 {[%clk 0:03:04]}  a6 {[%clk 0:02:54]} 10. a4 {[%clk 0:03:03]}  b6 {[%clk 0:02:53]} 11. Na3 {[%clk 0:03:03]}  Bb7 {[%clk 0:02:52]} 12. Rae1 {[%clk 0:03:03]}  Rad8 {[%clk 0:02:49]} 13. Bd3 {[%clk 0:03:01]}  Nb4 {[%clk 0:02:48]} 14. Ng5 {[%clk 0:03:01]}  Nxd3 {[%clk 0:02:43]} 15. cxd3 {[%clk 0:03:02]}  h6 {[%clk 0:02:41]} 16. Ne4 {[%clk 0:03:01]}  Bxe4 {[%clk 0:02:27]} 17. dxe4 {[%clk 0:03:02]}  Ne8 {[%clk 0:02:22]} 18. Nc4 {[%clk 0:02:38]}  b5 {[%clk 0:02:18]} 19. axb5 {[%clk 0:02:39]}  axb5 {[%clk 0:02:18]} 20. Na3 {[%clk 0:02:40]}  Qa5 {[%clk 0:02:05]} 21. Re2 {[%clk 0:02:34]}  Bf6 {[%clk 0:01:49]} 22. e5 {[%clk 0:02:33]}  dxe5 {[%clk 0:01:44]} 23. fxe5 {[%clk 0:02:34]}  Be7 {[%clk 0:01:42]} 24. Nb1 {[%clk 0:02:34]}  c4 {[%clk 0:01:40]} 25. bxc4 {[%clk 0:02:33]}  bxc4 {[%clk 0:01:40]} 26. Nc3 {[%clk 0:02:30]}  Qb4 {[%clk 0:01:23]} 27. Ba1 {[%clk 0:02:28]}  Ra8 {[%clk 0:01:01]} 28. Ne4 {[%clk 0:02:28]}  Rxa1 {[%clk 0:00:54]} 29. Rxa1 {[%clk 0:02:27]}  Qb2 {[%clk 0:00:54]} 30. Rf1 {[%clk 0:02:24]}  Qc2 {[%clk 0:00:53]} 31. Qg4 {[%clk 0:02:17]}  Qd3 {[%clk 0:00:50]} 32. Ref2 {[%clk 0:02:17]}  Nc7 {[%clk 0:00:30]} 33. Nf6+ {[%clk 0:02:06]}  Bxf6 {[%clk 0:00:30]} 34. exf6 {[%clk 0:02:07]}  g6 {[%clk 0:00:30]} 35. Rc1 {[%clk 0:02:08]}  Nd5 {[%clk 0:00:18]} 36. Qxc4 {[%clk 0:02:07]}  Qa3 {[%clk 0:00:17]} 37. e4 {[%clk 0:02:05]}  Nb6 {[%clk 0:00:14]} 38. Qc3 {[%clk 0:02:05]}  Qa4 {[%clk 0:00:13]} 39. Qe3 {[%clk 0:02:01]}  Nc4 {[%clk 0:00:10]} 40. Qxh6 {[%clk 0:02:01]} 1-0


[Site "https://www.chess.com"]

[Event "Titled Tuesday Blitz March 15 Late 2022"]
[White "Krasteva, Beloslava"]
[Black "Rastbod, Ali"]
[WhiteFideId "2922029"]
[BlackFideId "12567477"]
[WhiteElo "1689"]
[BlackElo "2200"]
[Result "0-1"]
[Round "01"]
[TimeControl "180+1"]
[Date "2022.03.16"]
[WhiteClock "0:00:01"]
[BlackClock "0:00:20"]

1. c4 {[%clk 0:02:59]}  e5 {[%clk 0:03:00]} 2. g3 {[%clk 0:02:58]}  c6 {[%clk 0:02:46]} 3. Bg2 {[%clk 0:02:54]}  d5 {[%clk 0:02:46]} 4. cxd5 {[%clk 0:02:49]}  cxd5 {[%clk 0:02:47]} 5. d4 {[%clk 0:02:49]}  e4 {[%clk 0:02:47]} 6. a3 {[%clk 0:02:49]}  Nc6 {[%clk 0:02:47]} 7. Nc3 {[%clk 0:02:47]}  h6 {[%clk 0:02:45]} 8. f3 {[%clk 0:02:42]}  exf3 {[%clk 0:02:45]} 9. Nxf3 {[%clk 0:02:39]}  Nf6 {[%clk 0:02:45]} 10. O-O {[%clk 0:02:39]}  Be7 {[%clk 0:02:45]} 11. Ne5 {[%clk 0:02:16]}  O-O {[%clk 0:02:45]} 12. Nxc6 {[%clk 0:02:04]}  bxc6 {[%clk 0:02:46]} 13. Kh1 {[%clk 0:01:58]}  Bg4 {[%clk 0:02:34]} 14. Bf4 {[%clk 0:01:56]}  Qb6 {[%clk 0:02:23]} 15. Qd2 {[%clk 0:01:54]}  Rfe8 {[%clk 0:02:13]} 16. Rac1 {[%clk 0:01:52]}  Qa6 {[%clk 0:02:09]} 17. e4 {[%clk 0:01:43]}  dxe4 {[%clk 0:02:05]} 18. Nxe4 {[%clk 0:01:44]}  Nd5 {[%clk 0:02:05]} 19. Nc5 {[%clk 0:01:32]}  Qb6 {[%clk 0:01:55]} 20. h3 {[%clk 0:00:33]}  Bh5 {[%clk 0:01:53]} 21. g4 {[%clk 0:00:33]}  Bg6 {[%clk 0:01:54]} 22. Nd7 {[%clk 0:00:22]}  Qb5 {[%clk 0:01:45]} 23. Ne5 {[%clk 0:00:20]}  Rac8 {[%clk 0:01:19]} 24. Nxg6 {[%clk 0:00:20]}  fxg6 {[%clk 0:01:20]} 25. Be5 {[%clk 0:00:20]}  Bg5 {[%clk 0:01:12]} 26. Qf2 {[%clk 0:00:17]}  Rf8 {[%clk 0:01:04]} 27. Qc2 {[%clk 0:00:08]}  Ne7 {[%clk 0:00:37]} 28. Qc4+ {[%clk 0:00:06]}  Qxc4 {[%clk 0:00:31]} 29. Rxc4 {[%clk 0:00:07]}  Rxf1+ {[%clk 0:00:32]} 30. Bxf1 {[%clk 0:00:07]}  Bf6 {[%clk 0:00:28]} 31. Bg2 {[%clk 0:00:06]}  Bxe5 {[%clk 0:00:26]} 32. dxe5 {[%clk 0:00:07]}  Kf7 {[%clk 0:00:27]} 33. Rc5 {[%clk 0:00:07]}  Ke6 {[%clk 0:00:27]} 34. b4 {[%clk 0:00:07]}  g5 {[%clk 0:00:23]} 35. Kg1 {[%clk 0:00:07]}  Ng6 {[%clk 0:00:23]} 36. Rxc6+ {[%clk 0:00:06]}  Rxc6 {[%clk 0:00:23]} 37. Bxc6 {[%clk 0:00:07]}  Nxe5 {[%clk 0:00:24]} 38. Be4 {[%clk 0:00:06]}  Nc4 {[%clk 0:00:23]} 39. a4 {[%clk 0:00:06]}  Ke5 {[%clk 0:00:22]} 40. Bb7 {[%clk 0:00:05]}  Nd6 {[%clk 0:00:19]} 41. Bc6 {[%clk 0:00:04]}  Kd4 {[%clk 0:00:20]} 42. b5 {[%clk 0:00:02]}  Kc5 {[%clk 0:00:19]} 43. Kf2 {[%clk 0:00:02]}  Kb4 {[%clk 0:00:20]} 44. Ke3 {[%clk 0:00:01]}  Nc4+ {[%clk 0:00:19]} 45. Kd4 {[%clk 0:00:01]}  Nb6 {[%clk 0:00:20]} 0-1


[Site "https://www.chess.com"]

[Event "Titled Tuesday Blitz March 15 Late 2022"]
[White "Kubicka, Anna"]
[Black "Bluebaum, Matthias"]
[WhiteFideId "1152254"]
[BlackFideId "24651516"]
[WhiteElo "2000"]
[BlackElo "2550"]
[Result "0-1"]
[Round "01"]
[TimeControl "180+1"]
[Date "2022.03.15"]
[WhiteClock "0:00:24"]
[BlackClock "0:00:59"]

1. e4 {[%clk 0:02:58]}  c6 {[%clk 0:03:00]} 2. Nc3 {[%clk 0:02:56]}  d5 {[%clk 0:03:01]} 3. Nf3 {[%clk 0:02:56]}  dxe4 {[%clk 0:03:01]} 4. Nxe4 {[%clk 0:02:55]}  Nf6 {[%clk 0:03:02]} 5. Nxf6+ {[%clk 0:02:55]}  exf6 {[%clk 0:03:03]} 6. Bc4 {[%clk 0:02:54]}  Bd6 {[%clk 0:03:03]} 7. d3 {[%clk 0:02:53]}  O-O {[%clk 0:03:03]} 8. Be3 {[%clk 0:02:53]}  Bg4 {[%clk 0:03:02]} 9. h3 {[%clk 0:02:53]}  Bh5 {[%clk 0:03:01]} 10. g4 {[%clk 0:02:50]}  Bg6 {[%clk 0:03:02]} 11. h4 {[%clk 0:02:46]}  h6 {[%clk 0:02:50]} 12. Qd2 {[%clk 0:02:36]}  a5 {[%clk 0:02:26]} 13. Bxh6 {[%clk 0:02:32]}  b5 {[%clk 0:02:25]} 14. h5 {[%clk 0:02:06]}  Bh7 {[%clk 0:02:24]} 15. Bxf7+ {[%clk 0:01:59]}  Rxf7 {[%clk 0:02:23]} 16. Be3 {[%clk 0:01:59]}  Bb4 {[%clk 0:02:12]} 17. c3 {[%clk 0:01:58]}  Bf8 {[%clk 0:02:13]} 18. O-O-O {[%clk 0:01:58]}  Rd7 {[%clk 0:02:09]} 19. d4 {[%clk 0:01:55]}  Be4 {[%clk 0:02:10]} 20. Rh3 {[%clk 0:01:55]}  b4 {[%clk 0:02:07]} 21. c4 {[%clk 0:01:46]}  b3 {[%clk 0:02:03]} 22. a3 {[%clk 0:01:41]}  Na6 {[%clk 0:01:59]} 23. h6 {[%clk 0:01:26]}  g6 {[%clk 0:01:57]} 24. Rdh1 {[%clk 0:01:20]}  Qe8 {[%clk 0:01:47]} 25. h7+ {[%clk 0:01:19]}  Kh8 {[%clk 0:01:46]} 26. Bh6 {[%clk 0:01:15]}  Qf7 {[%clk 0:01:42]} 27. Qc3 {[%clk 0:01:04]}  Nb4 {[%clk 0:01:21]} 28. Qxb3 {[%clk 0:00:51]}  a4 {[%clk 0:01:18]} 29. Qe3 {[%clk 0:00:36]}  Qxc4+ {[%clk 0:01:17]} 30. Kd2 {[%clk 0:00:36]}  Qc2+ {[%clk 0:01:10]} 31. Ke1 {[%clk 0:00:36]}  Nd5 {[%clk 0:00:59]} 32. Qd2 {[%clk 0:00:31]}  Qxd2+ {[%clk 0:00:59]} 33. Kxd2 {[%clk 0:00:24]}  Bxh6+ {[%clk 0:00:58]} 34. Rxh6 {[%clk 0:00:24]}  Bxf3 {[%clk 0:00:59]} 0-1


[Site "https://www.chess.com"]

[Event "Titled Tuesday Blitz March 15 Late 2022"]
[White "Lashkin, Jegor"]
[Black "Fiorito, Fabian"]
[WhiteFideId "13907808"]
[BlackFideId "100200"]
[WhiteElo "2344"]
[BlackElo "2395"]
[Result "1-0"]
[Round "01"]
[TimeControl "180+1"]
[Date "2022.03.16"]
[WhiteClock "0:00:42"]
[BlackClock "0:00:26"]

1. d4 {[%clk 0:02:45]}  Nf6 {[%clk 0:02:59]} 2. c4 {[%clk 0:02:45]}  b6 {[%clk 0:02:59]} 3. Nc3 {[%clk 0:02:44]}  Bb7 {[%clk 0:03:00]} 4. d5 {[%clk 0:02:44]}  e6 {[%clk 0:02:59]} 5. a3 {[%clk 0:02:45]}  Be7 {[%clk 0:02:53]} 6. Nf3 {[%clk 0:02:43]}  O-O {[%clk 0:02:52]} 7. e4 {[%clk 0:02:43]}  exd5 {[%clk 0:02:52]} 8. cxd5 {[%clk 0:02:43]}  Bc5 {[%clk 0:02:52]} 9. Bd3 {[%clk 0:02:38]}  Re8 {[%clk 0:02:46]} 10. O-O {[%clk 0:02:37]}  h6 {[%clk 0:02:39]} 11. b4 {[%clk 0:02:20]}  Bf8 {[%clk 0:02:36]} 12. Bb2 {[%clk 0:02:19]}  c6 {[%clk 0:02:36]} 13. Bc2 {[%clk 0:01:51]}  cxd5 {[%clk 0:02:28]} 14. e5 {[%clk 0:01:42]}  Ng4 {[%clk 0:01:58]} 15. Nxd5 {[%clk 0:01:40]}  Nc6 {[%clk 0:01:58]} 16. Re1 {[%clk 0:01:36]}  Qb8 {[%clk 0:01:37]} 17. Qd3 {[%clk 0:01:27]}  g6 {[%clk 0:01:24]} 18. h3 {[%clk 0:01:25]}  Ngxe5 {[%clk 0:01:02]} 19. Nf6+ {[%clk 0:01:23]}  Kh8 {[%clk 0:00:52]} 20. Nxe8 {[%clk 0:01:23]}  Bg7 {[%clk 0:00:51]} 21. Nxe5 {[%clk 0:01:04]}  Nxe5 {[%clk 0:00:51]} 22. Qd6 {[%clk 0:00:48]}  Nf3+ {[%clk 0:00:28]} 23. gxf3 {[%clk 0:00:48]}  Bxb2 {[%clk 0:00:27]} 24. Qf8+ {[%clk 0:00:48]}  Kh7 {[%clk 0:00:26]} 25. Qxf7+ {[%clk 0:00:48]}  Kh8 {[%clk 0:00:26]} 26. Bxg6 {[%clk 0:00:42]} 1-0


[Site "https://www.chess.com"]

[Event "Titled Tuesday Blitz March 15 Late 2022"]
[White "Levin, Anthony"]
[Black "Krishnan, Varun"]
[WhiteFideId "30940680"]
[BlackFideId "5054508"]
[WhiteElo "1894"]
[BlackElo "2568"]
[Result "0-1"]
[Round "01"]
[TimeControl "180+1"]
[Date "2022.03.16"]
[WhiteClock "0:00:01"]
[BlackClock "0:00:09"]

1. d4 {[%clk 0:02:59]}  d5 {[%clk 0:02:58]} 2. e3 {[%clk 0:02:58]}  Nf6 {[%clk 0:02:58]} 3. Bd3 {[%clk 0:02:58]}  c6 {[%clk 0:02:56]} 4. Nd2 {[%clk 0:02:57]}  g6 {[%clk 0:02:56]} 5. b3 {[%clk 0:02:53]}  Bg7 {[%clk 0:02:57]} 6. Bb2 {[%clk 0:02:54]}  O-O {[%clk 0:02:57]} 7. Ngf3 {[%clk 0:02:53]}  a5 {[%clk 0:02:56]} 8. a3 {[%clk 0:02:51]}  a4 {[%clk 0:02:46]} 9. O-O {[%clk 0:02:42]}  axb3 {[%clk 0:02:45]} 10. cxb3 {[%clk 0:02:43]}  b6 {[%clk 0:02:43]} 11. Qc2 {[%clk 0:02:35]}  Ba6 {[%clk 0:02:42]} 12. Bxa6 {[%clk 0:02:25]}  Rxa6 {[%clk 0:02:43]} 13. Rfc1 {[%clk 0:02:03]}  Nfd7 {[%clk 0:02:31]} 14. Qd3 {[%clk 0:01:47]}  Ra8 {[%clk 0:02:29]} 15. b4 {[%clk 0:01:46]}  Re8 {[%clk 0:02:23]} 16. Qb3 {[%clk 0:01:27]}  e5 {[%clk 0:02:05]} 17. dxe5 {[%clk 0:01:28]}  Nxe5 {[%clk 0:02:05]} 18. Nxe5 {[%clk 0:01:28]}  Bxe5 {[%clk 0:02:05]} 19. Bxe5 {[%clk 0:01:28]}  Rxe5 {[%clk 0:02:06]} 20. Nf3 {[%clk 0:01:27]}  Re8 {[%clk 0:02:04]} 21. Nd4 {[%clk 0:01:24]}  Qf6 {[%clk 0:02:01]} 22. a4 {[%clk 0:01:19]}  Qd6 {[%clk 0:01:45]} 23. a5 {[%clk 0:01:12]}  b5 {[%clk 0:01:31]} 24. h3 {[%clk 0:01:06]}  Ra6 {[%clk 0:01:29]} 25. Rc2 {[%clk 0:00:56]}  Nd7 {[%clk 0:01:28]} 26. Rac1 {[%clk 0:00:56]}  Ne5 {[%clk 0:01:25]} 27. Rd1 {[%clk 0:00:28]}  Nc4 {[%clk 0:01:15]} 28. Nf3 {[%clk 0:00:28]}  h6 {[%clk 0:01:01]} 29. Nd2 {[%clk 0:00:28]}  Qf6 {[%clk 0:00:43]} 30. Nxc4 {[%clk 0:00:25]}  bxc4 {[%clk 0:00:43]} 31. Qa4 {[%clk 0:00:18]}  Rb8 {[%clk 0:00:43]} 32. Rb1 {[%clk 0:00:13]}  Qe7 {[%clk 0:00:33]} 33. b5 {[%clk 0:00:12]}  cxb5 {[%clk 0:00:21]} 34. Rxb5 {[%clk 0:00:13]}  Rd8 {[%clk 0:00:19]} 35. Rb6 {[%clk 0:00:13]}  Qa7 {[%clk 0:00:15]} 36. Qb5 {[%clk 0:00:09]}  Rxa5 {[%clk 0:00:13]} 37. Qc6 {[%clk 0:00:07]}  Ra1+ {[%clk 0:00:13]} 38. Kh2 {[%clk 0:00:07]}  Qe7 {[%clk 0:00:13]} 39. g3 {[%clk 0:00:04]}  Qe4 {[%clk 0:00:11]} 40. Rbb2 {[%clk 0:00:01]}  Qh1# {[%clk 0:00:09]} 0-1


[Site "https://www.chess.com"]

[Event "Titled Tuesday Blitz March 15 Late 2022"]
[White "Lewicki, Miroslaw"]
[Black "Martinez Alcantara, Jose Eduardo"]
[WhiteFideId "1113380"]
[BlackFideId "3805662"]
[WhiteElo "2283"]
[BlackElo "2690"]
[Result "1-0"]
[Round "01"]
[TimeControl "180+1"]
[Date "2022.03.15"]
[WhiteClock "0:00:10"]
[BlackClock "0:00:03"]

1. g3 {[%clk 0:03:00]}  c5 {[%clk 0:02:59]} 2. Bg2 {[%clk 0:02:55]}  Nc6 {[%clk 0:03:00]} 3. Nf3 {[%clk 0:02:54]}  g6 {[%clk 0:03:00]} 4. O-O {[%clk 0:02:55]}  Bg7 {[%clk 0:03:01]} 5. c3 {[%clk 0:02:55]}  e5 {[%clk 0:03:01]} 6. e4 {[%clk 0:02:55]}  Nge7 {[%clk 0:03:01]} 7. d3 {[%clk 0:02:56]}  O-O {[%clk 0:03:01]} 8. Be3 {[%clk 0:02:56]}  d6 {[%clk 0:02:58]} 9. Nbd2 {[%clk 0:02:56]}  h6 {[%clk 0:02:58]} 10. a4 {[%clk 0:02:54]}  Be6 {[%clk 0:02:55]} 11. Nc4 {[%clk 0:02:53]}  f5 {[%clk 0:02:42]} 12. exf5 {[%clk 0:02:40]}  gxf5 {[%clk 0:02:43]} 13. Qd2 {[%clk 0:02:38]}  d5 {[%clk 0:02:23]} 14. Na3 {[%clk 0:02:34]}  f4 {[%clk 0:01:59]} 15. Bxc5 {[%clk 0:02:34]}  e4 {[%clk 0:02:00]} 16. dxe4 {[%clk 0:02:02]}  dxe4 {[%clk 0:02:00]} 17. Qxd8 {[%clk 0:02:01]}  Raxd8 {[%clk 0:02:01]} 18. Rfe1 {[%clk 0:01:27]}  exf3 {[%clk 0:01:26]} 19. Rxe6 {[%clk 0:01:28]}  fxg2 {[%clk 0:01:27]} 20. Bxe7 {[%clk 0:00:46]}  Rfe8 {[%clk 0:01:27]} 21. Bxd8 {[%clk 0:00:46]}  Rxe6 {[%clk 0:01:27]} 22. Bc7 {[%clk 0:00:46]}  f3 {[%clk 0:01:26]} 23. Nc4 {[%clk 0:00:47]}  Re2 {[%clk 0:01:10]} 24. Rd1 {[%clk 0:00:40]}  Nd4 {[%clk 0:00:50]} 25. cxd4 {[%clk 0:00:29]}  Bxd4 {[%clk 0:00:50]} 26. Ne3 {[%clk 0:00:29]}  Rxe3 {[%clk 0:00:48]} 27. Ba5 {[%clk 0:00:19]}  Re4 {[%clk 0:00:18]} 28. Rd3 {[%clk 0:00:19]}  Bxb2 {[%clk 0:00:13]} 29. Rxf3 {[%clk 0:00:17]}  Rxa4 {[%clk 0:00:14]} 30. Bd2 {[%clk 0:00:12]}  a5 {[%clk 0:00:11]} 31. Rb3 {[%clk 0:00:10]}  Bd4 {[%clk 0:00:07]} 32. Rxb7 {[%clk 0:00:11]}  Ra2 {[%clk 0:00:07]} 33. Be3 {[%clk 0:00:09]}  Bxe3 {[%clk 0:00:07]} 34. fxe3 {[%clk 0:00:10]}  a4 {[%clk 0:00:08]} 35. Ra7 {[%clk 0:00:11]}  a3 {[%clk 0:00:07]} 36. e4 {[%clk 0:00:09]}  Kf8 {[%clk 0:00:07]} 37. e5 {[%clk 0:00:09]}  Ke8 {[%clk 0:00:08]} 38. e6 {[%clk 0:00:09]}  Kd8 {[%clk 0:00:07]} 39. h4 {[%clk 0:00:09]}  h5 {[%clk 0:00:07]} 40. g4 {[%clk 0:00:09]}  hxg4 {[%clk 0:00:07]} 41. h5 {[%clk 0:00:09]}  Re2 {[%clk 0:00:07]} 42. h6 {[%clk 0:00:07]}  Rxe6 {[%clk 0:00:03]} 43. h7 {[%clk 0:00:08]}  Rh6 {[%clk 0:00:03]} 44. h8=Q+ {[%clk 0:00:08]}  Rxh8 {[%clk 0:00:03]} 45. Ra8+ {[%clk 0:00:09]}  Kc7 {[%clk 0:00:04]} 46. Rxh8 {[%clk 0:00:10]}  Kb7 {[%clk 0:00:03]} 47. Kxg2 {[%clk 0:00:10]}  Kb6 {[%clk 0:00:02]} 48. Ra8 {[%clk 0:00:10]}  Kb5 {[%clk 0:00:03]} 49. Rxa3 {[%clk 0:00:10]} 1-0


[Site "https://www.chess.com"]

[Event "Titled Tuesday Blitz March 15 Late 2022"]
[White "Lewtak, Damian"]
[Black "Ibarra Jerez, Jose Carlos"]
[WhiteFideId "1141724"]
[BlackFideId "2226332"]
[WhiteElo "2362"]
[BlackElo "2626"]
[Result "0-1"]
[Round "01"]
[TimeControl "180+1"]
[Date "2022.03.16"]
[WhiteClock "0:00:41"]
[BlackClock "0:01:52"]

1. d4 {[%clk 0:03:00]}  Nf6 {[%clk 0:02:59]} 2. c3 {[%clk 0:03:01]}  g6 {[%clk 0:02:53]} 3. Nf3 {[%clk 0:03:01]}  Bg7 {[%clk 0:02:54]} 4. h3 {[%clk 0:03:00]}  O-O {[%clk 0:02:54]} 5. Bf4 {[%clk 0:03:00]}  d6 {[%clk 0:02:54]} 6. Nbd2 {[%clk 0:02:59]}  c5 {[%clk 0:02:54]} 7. e4 {[%clk 0:02:58]}  cxd4 {[%clk 0:02:53]} 8. cxd4 {[%clk 0:02:59]}  Nc6 {[%clk 0:02:53]} 9. Bb5 {[%clk 0:02:57]}  Qa5 {[%clk 0:02:48]} 10. Qa4 {[%clk 0:02:52]}  Qb6 {[%clk 0:02:35]} 11. O-O {[%clk 0:02:35]}  a6 {[%clk 0:02:31]} 12. Bxc6 {[%clk 0:02:05]}  bxc6 {[%clk 0:02:32]} 13. b3 {[%clk 0:02:00]}  Qb5 {[%clk 0:02:28]} 14. Qa3 {[%clk 0:01:57]}  a5 {[%clk 0:02:22]} 15. Rfc1 {[%clk 0:01:49]}  Bb7 {[%clk 0:02:06]} 16. Rc2 {[%clk 0:01:43]}  Qd3 {[%clk 0:02:01]} 17. Rac1 {[%clk 0:00:43]}  Nxe4 {[%clk 0:02:01]} 18. Ne1 {[%clk 0:00:43]}  Qxd4 {[%clk 0:01:53]} 19. Rc4 {[%clk 0:00:41]}  Qxf2+ {[%clk 0:01:52]} 0-1


[Site "https://www.chess.com"]

[Event "Titled Tuesday Blitz March 15 Late 2022"]
[White "Logozar, Elijah"]
[Black "Indjic, Aleksandar"]
[WhiteFideId "30963788"]
[BlackFideId "911925"]
[WhiteElo "2528"]
[BlackElo "2616"]
[Result "0-1"]
[Round "01"]
[TimeControl "180+1"]
[Date "2022.03.15"]
[WhiteClock "0:01:14"]
[BlackClock "0:01:26"]

1. e4 {[%clk 0:02:59]}  c6 {[%clk 0:02:59]} 2. d4 {[%clk 0:02:57]}  d5 {[%clk 0:02:56]} 3. e5 {[%clk 0:02:57]}  c5 {[%clk 0:02:56]} 4. dxc5 {[%clk 0:02:57]}  e6 {[%clk 0:02:57]} 5. a3 {[%clk 0:02:57]}  Bxc5 {[%clk 0:02:56]} 6. Nf3 {[%clk 0:02:57]}  Ne7 {[%clk 0:02:56]} 7. b4 {[%clk 0:02:57]}  Bb6 {[%clk 0:02:55]} 8. Bd3 {[%clk 0:02:58]}  a5 {[%clk 0:02:55]} 9. b5 {[%clk 0:02:44]}  Nd7 {[%clk 0:02:55]} 10. O-O {[%clk 0:02:40]}  Nc5 {[%clk 0:02:55]} 11. Nc3 {[%clk 0:02:38]}  a4 {[%clk 0:02:53]} 12. Be3 {[%clk 0:02:36]}  Ng6 {[%clk 0:02:52]} 13. Bxg6 {[%clk 0:02:35]}  fxg6 {[%clk 0:02:51]} 14. Ne2 {[%clk 0:02:33]}  O-O {[%clk 0:02:50]} 15. Ned4 {[%clk 0:02:32]}  Bd7 {[%clk 0:02:50]} 16. Ng5 {[%clk 0:02:30]}  h6 {[%clk 0:02:47]} 17. Nh3 {[%clk 0:02:27]}  Rc8 {[%clk 0:02:39]} 18. Nf4 {[%clk 0:02:27]}  Qe8 {[%clk 0:02:37]} 19. Qg4 {[%clk 0:02:23]}  g5 {[%clk 0:02:37]} 20. Nh5 {[%clk 0:02:21]}  Ne4 {[%clk 0:02:26]} 21. h4 {[%clk 0:02:18]}  Rc4 {[%clk 0:02:18]} 22. Rad1 {[%clk 0:02:18]}  Bxd4 {[%clk 0:02:06]} 23. Rxd4 {[%clk 0:02:16]}  Rxd4 {[%clk 0:02:06]} 24. Bxd4 {[%clk 0:02:13]}  Bxb5 {[%clk 0:02:06]} 25. hxg5 {[%clk 0:02:09]}  hxg5 {[%clk 0:02:03]} 26. Rb1 {[%clk 0:02:03]}  Rf5 {[%clk 0:01:53]} 27. f3 {[%clk 0:01:57]}  Nd2 {[%clk 0:01:52]} 28. Rd1 {[%clk 0:01:56]}  Nc4 {[%clk 0:01:50]} 29. Re1 {[%clk 0:01:51]}  Nxa3 {[%clk 0:01:35]} 30. Ng3 {[%clk 0:01:50]}  Nxc2 {[%clk 0:01:32]} 31. Nxf5 {[%clk 0:01:46]}  exf5 {[%clk 0:01:32]} 32. Qxf5 {[%clk 0:01:34]}  Nxd4 {[%clk 0:01:32]} 33. Qxg5 {[%clk 0:01:25]}  Ne6 {[%clk 0:01:30]} 34. Qd2 {[%clk 0:01:24]}  Bc4 {[%clk 0:01:28]} 35. f4 {[%clk 0:01:24]}  Qf7 {[%clk 0:01:27]} 36. Re3 {[%clk 0:01:14]}  Qxf4 {[%clk 0:01:26]} 0-1


[Site "https://www.chess.com"]